Department Family,Entity,Date,Expense Type,Expense Area,Supplier,Transaction Number,VAT Registration Number,Purchase Invoice Number,AP Amount
Department of Health,Royal Papworth Hospital NHS Foundation Trust,11/30/2021,Extrnl Rehrge : Recivd,Clinical Perfusion,CAMBRIDGE PERFUSION SERVICES LLP,40216516,924492904,2126,"47,585.47"
Department of Health,Royal Papworth Hospital NHS Foundation Trust,11/30/2021,Extrnl Rehrge : Recivd,ECMO program,CAMBRIDGE PERFUSION SERVICES LLP,40352731,924492904,2129,"108,865.25"
Department of Health,Royal Papworth Hospital NHS Foundation Trust,11/30/2021,Extrnl Rehrge : Recivd,STA - Covid 19,CAMBRIDGE PERFUSION SERVICES LLP,40216518,924492904,2130,"38,038.56"
Department of Health,Royal Papworth Hospital NHS Foundation Trust,11/30/2021,Laboratory Chemicals,Poct - Point Of Care Testing,CHRYSTAL CONSULTING LTD,40227768,,56803,"118,738.36"
Department of Health,Royal Papworth Hospital NHS Foundation Trust,11/30/2021,Laboratory Chemicals,Poct - Point Of Care Testing,CHRYSTAL CONSULTING LTD,40227770,,59031,"87,564.00"
Department of Health,Royal Papworth Hospital NHS Foundation Trust,11/30/2021,Laboratory External Tests,Pathology,CHRYSTAL CONSULTING LTD,40125642,,59453,"61,927.11"
Department of Health,Royal Papworth Hospital NHS Foundation Trust,11/30/2021,Computer Maintenance,Sitewide I T,DH OPCO UK LTD,40416753,372714884,5970000406,"35,370.38"
Department of Health,Royal Papworth Hospital NHS Foundation Trust,11/30/2021,Electricity,Energy,EDF ENERGY 1 LTD,40181490,523041202,000010853036,"70,547.67"
Department of Health,Royal Papworth Hospital NHS Foundation Trust,11/30/2021,Electricity,Energy,EDF ENERGY 1 LTD,40181480,523041202,000010857912,"54,391.63"
Department of Health,Royal Papworth Hospital NHS Foundation Trust,11/30/2021,Contr Estate Management,Engineering,FLEETSOLVE LTD,39642208,,8668,"25,352.42"
Department of Health,Royal Papworth Hospital NHS Foundation Trust,11/30/2021,Heating Oil,Engineering,FLEETSOLVE LTD,40264788,,8703,"35,336.39"
Department of Health,Royal Papworth Hospital NHS Foundation Trust,11/30/2021,Drugs,Balance Sheet,HEALTHCARE AT HOME LTD,40299319,873342418-1,HAHNOVCONS01,"206,432.72"
Department of Health,Royal Papworth Hospital NHS Foundation Trust,11/30/2021,Drugs,Balance Sheet,HEALTHCARE AT HOME LTD,40299322,873342418-1,HAHNOVCONS02,"206,432.72"
Department of Health,Royal Papworth Hospital NHS Foundation Trust,11/30/2021,Drugs,Balance Sheet,HEALTHCARE AT HOME LTD,40299325,873342418-1,HAHNOVCONS03,"26,849.31"
Department of Health,Royal Papworth Hospital NHS Foundation Trust,11/30/2021,Income tax - Current,Balance Sheet,INLAND REVENUE CIS,40195523,,126PQ001177772207,"2,582,967.88"
Department of Health,Royal Papworth Hospital NHS Foundation Trust,11/30/2021,Drugs,Balance Sheet,LLOYDS PHARMACY CLINICAL HOMECARE LTD,40299304,GB 222516987,LPCHNOVCONS01,"182,613.56"
Department of Health,Royal Papworth Hospital NHS Foundation Trust,11/30/2021,Drugs,Balance Sheet,LLOYDS PHARMACY CLINICAL HOMECARE LTD,40299307,GB 222516987,LPCHNOVCONS02,"198,493.00"
Department of Health,Royal Papworth Hospital NHS Foundation Trust,11/30/2021,Drugs,Balance Sheet,LLOYDS PHARMACY CLINICAL HOMECARE LTD,40299310,GB 222516987,LPCHNOVCONS03,"190,553.28"
Department of Health,Royal Papworth Hospital NHS Foundation Trust,11/30/2021,Drugs,Balance Sheet,LLOYDS PHARMACY CLINICAL HOMECARE LTD,40299314,GB 222516987,LPCHNOVCONS04,"57,304.07"
Department of Health,Royal Papworth Hospital NHS Foundation Trust,11/30/2021,Med & Surg Equip General,NIHR AI Award,MAGIC BULLET LTD,40252326,,1000789,"62,500.00"
Department of Health,Royal Papworth Hospital NHS Foundation Trust,11/30/2021,Med & Surg Equip General,PCI,MEDTRONIC LTD,39949965,467254526,1204749812,"40,920.00"
Department of Health,Royal Papworth Hospital NHS Foundation Trust,11/30/2021,Grants Research Exp,Ettaa Grant,NORTHUMBRIA UNIVERSITY,40173436,GB 686994842,91677715,"64,308.00"
Department of Health,Royal Papworth Hospital NHS Foundation Trust,11/30/2021,Bldg Ctrcts - PFI Svc Chg,Interest / Divis / P&L On Fas,NPH HEALTHCARE LTD,40181473,,SI1464,"1,247,116.72"
Department of Health,Royal Papworth Hospital NHS Foundation Trust,11/30/2021,Computer Maintenance,Sitewide I T,PARITY MEDICAL LTD,40368103,539720820,0000018315,"45,384.58"
Department of Health,Royal Papworth Hospital NHS Foundation Trust,11/30/2021,Med & Surg Equip General,Oncology,RICHARD WOLF UK LTD,39736552,317837538,3090014741,"28,613.60"
Department of Health,Royal Papworth Hospital NHS Foundation Trust,11/30/2021,Professional Fees,COVID19,SOFTCAT PLC,40148645,GB491848503,INV03226005,"46,670.00"
Department of Health,Royal Papworth Hospital NHS Foundation Trust,11/30/2021,Other Liabilities - Curr,Balance Sheet,SUPPLY CHAIN COORDINATION LIMITED,39949758,290885854,1122125950,"578,476.21"
Department of Health,Royal Papworth Hospital NHS Foundation Trust,11/30/2021,Other Liabilities - Curr,Balance Sheet,SUPPLY CHAIN COORDINATION LIMITED,40052037,290885854,1122129791,"502,509.92"
Department of Health,Royal Papworth Hospital NHS Foundation Trust,11/30/2021,Other Liabilities - Curr,Balance Sheet,SUPPLY CHAIN COORDINATION LIMITED,40123188,290885854,1122135473,"504,392.06"
Department of Health,Royal Papworth Hospital NHS Foundation Trust,11/30/2021,Other Liabilities - Curr,Balance Sheet,SUPPLY CHAIN COORDINATION LIMITED,40173473,290885854,1122140911,"554,902.72"
Department of Health,Royal Papworth Hospital NHS Foundation Trust,11/30/2021,Other Liabilities - Curr,Balance Sheet,SUPPLY CHAIN COORDINATION LIMITED,40216557,290885854,1122146599,"447,035.83"
Department of Health,Royal Papworth Hospital NHS Foundation Trust,11/30/2021,Other Liabilities - Curr,Balance Sheet,SUPPLY CHAIN COORDINATION LIMITED,40274266,290885854,1122150604,"494,047.63"
Department of Health,Royal Papworth Hospital NHS Foundation Trust,11/30/2021,Other Liabilities - Curr,Balance Sheet,SUPPLY CHAIN COORDINATION LIMITED,40369142,290885854,1122156048,"768,162.39"
Department of Health,Royal Papworth Hospital NHS Foundation Trust,11/30/2021,Med & Surg Equip General,Transplant,TRANSMEDICS BV,40416751,NL817196195B01,35210298,"208,850.00"
Department of Health,Royal Papworth Hospital NHS Foundation Trust,11/30/2021,Grants,Mesobank Awards,UNIVERSITY OF CAMBRIDGE,40235588,GB 823847609,EW9149992,"31,334.88"
